[Event "Titled Tuesday Blitz November 08 Early 2022"]
[White "Durarbayli, Vasif"]
[Black "Kollars, Dmitrij"]
[WhiteFideId "13402935"]
[BlackFideId "12909572"]
[WhiteElo "2586"]
[BlackElo "2584"]
[Result "1-0"]
[Round "05"]
[TimeControl "180+1"]
[Date "2022.11.08"]
[WhiteClock "0:00:14"]
[BlackClock "0:00:02"]

1. e4 {[%clk 0:03:00]}  e5 {[%clk 0:02:45]} 2. Nf3 {[%clk 0:03:00]}  Nc6 {[%clk 0:02:46]} 3. Bb5 {[%clk 0:03:00]}  a6 {[%clk 0:02:46]} 4. Ba4 {[%clk 0:03:01]}  Nf6 {[%clk 0:02:46]} 5. d3 {[%clk 0:03:01]}  b5 {[%clk 0:02:43]} 6. Bb3 {[%clk 0:03:02]}  d6 {[%clk 0:02:44]} 7. c3 {[%clk 0:03:00]}  g6 {[%clk 0:02:44]} 8. O-O {[%clk 0:02:59]}  Bg7 {[%clk 0:02:45]} 9. h3 {[%clk 0:03:00]}  O-O {[%clk 0:02:45]} 10. Be3 {[%clk 0:03:01]}  d5 {[%clk 0:02:26]} 11. Nbd2 {[%clk 0:02:54]}  h6 {[%clk 0:02:21]} 12. Qc1 {[%clk 0:02:31]}  Be6 {[%clk 0:02:10]} 13. Re1 {[%clk 0:02:22]}  Re8 {[%clk 0:01:55]} 14. a4 {[%clk 0:02:12]}  Kh7 {[%clk 0:01:29]} 15. Bc2 {[%clk 0:01:53]}  Rb8 {[%clk 0:01:02]} 16. axb5 {[%clk 0:01:46]}  axb5 {[%clk 0:01:03]} 17. Ra6 {[%clk 0:01:42]}  Qd6 {[%clk 0:00:32]} 18. d4 {[%clk 0:01:20]}  Ra8 {[%clk 0:00:20]} 19. dxe5 {[%clk 0:01:13]}  Qd7 {[%clk 0:00:12]} 20. Rxa8 {[%clk 0:01:13]}  Rxa8 {[%clk 0:00:13]} 21. exf6 {[%clk 0:01:13]}  Bxf6 {[%clk 0:00:14]} 22. exd5 {[%clk 0:01:10]}  Bxd5 {[%clk 0:00:15]} 23. Be4 {[%clk 0:01:05]}  Bg7 {[%clk 0:00:14]} 24. Bxd5 {[%clk 0:01:04]}  Qxd5 {[%clk 0:00:15]} 25. Bf4 {[%clk 0:01:00]}  b4 {[%clk 0:00:06]} 26. Bxc7 {[%clk 0:00:48]}  bxc3 {[%clk 0:00:06]} 27. bxc3 {[%clk 0:00:49]}  Ra2 {[%clk 0:00:07]} 28. Bg3 {[%clk 0:00:46]}  Qd3 {[%clk 0:00:04]} 29. Nf1 {[%clk 0:00:36]}  Rc2 {[%clk 0:00:03]} 30. Qe3 {[%clk 0:00:35]}  Qc4 {[%clk 0:00:03]} 31. N1d2 {[%clk 0:00:31]}  Qxc3 {[%clk 0:00:03]} 32. Qxc3 {[%clk 0:00:31]}  Bxc3 {[%clk 0:00:04]} 33. Rd1 {[%clk 0:00:31]}  Bb4 {[%clk 0:00:01]} 34. Nf1 {[%clk 0:00:32]}  g5 {[%clk 0:00:01]} 35. Ne3 {[%clk 0:00:32]}  Rc5 {[%clk 0:00:01]} 36. Nd4 {[%clk 0:00:28]}  Nxd4 {[%clk 0:00:01]} 37. Rxd4 {[%clk 0:00:28]}  Bc3 {[%clk 0:00:01]} 38. Rd5 {[%clk 0:00:28]}  Rc6 {[%clk 0:00:02]} 39. Be5 {[%clk 0:00:28]}  Bb4 {[%clk 0:00:01]} 40. g4 {[%clk 0:00:28]}  Kg6 {[%clk 0:00:01]} 41. Kg2 {[%clk 0:00:27]}  f6 {[%clk 0:00:01]} 42. Bg3 {[%clk 0:00:27]}  h5 {[%clk 0:00:02]} 43. gxh5+ {[%clk 0:00:22]}  Kxh5 {[%clk 0:00:03]} 44. h4 {[%clk 0:00:22]}  Kg6 {[%clk 0:00:03]} 45. hxg5 {[%clk 0:00:22]}  fxg5 {[%clk 0:00:04]} 46. Ng4 {[%clk 0:00:22]}  Re6 {[%clk 0:00:03]} 47. Ne5+ {[%clk 0:00:22]}  Kh5 {[%clk 0:00:04]} 48. Nf3 {[%clk 0:00:23]}  Be7 {[%clk 0:00:04]} 49. Rb5 {[%clk 0:00:19]}  Re4 {[%clk 0:00:03]} 50. Re5 {[%clk 0:00:19]}  Rxe5 {[%clk 0:00:03]} 51. Nxe5 {[%clk 0:00:19]}  Bf6 {[%clk 0:00:03]} 52. Nd7 {[%clk 0:00:18]}  Be7 {[%clk 0:00:03]} 53. Ne5 {[%clk 0:00:19]}  Bf6 {[%clk 0:00:03]} 54. Nd3 {[%clk 0:00:19]}  Kg4 {[%clk 0:00:03]} 55. f3+ {[%clk 0:00:19]}  Kf5 {[%clk 0:00:03]} 56. Nf2 {[%clk 0:00:19]}  Be7 {[%clk 0:00:03]} 57. Ng4 {[%clk 0:00:20]}  Bf8 {[%clk 0:00:03]} 58. Kf2 {[%clk 0:00:21]}  Bc5+ {[%clk 0:00:03]} 59. Ke2 {[%clk 0:00:21]}  Bd4 {[%clk 0:00:04]} 60. Bf2 {[%clk 0:00:21]}  Bg7 {[%clk 0:00:04]} 61. Be3 {[%clk 0:00:22]}  Bf8 {[%clk 0:00:04]} 62. Kd3 {[%clk 0:00:22]}  Be7 {[%clk 0:00:04]} 63. Kc4 {[%clk 0:00:23]}  Bd6 {[%clk 0:00:05]} 64. Kd5 {[%clk 0:00:23]}  Bf4 {[%clk 0:00:05]} 65. Kd4 {[%clk 0:00:22]}  Bd6 {[%clk 0:00:05]} 66. Kd3 {[%clk 0:00:23]}  Bc7 {[%clk 0:00:05]} 67. Ke2 {[%clk 0:00:23]}  Bd6 {[%clk 0:00:06]} 68. Kf2 {[%clk 0:00:21]}  Bf8 {[%clk 0:00:06]} 69. Kg2 {[%clk 0:00:22]}  Bg7 {[%clk 0:00:06]} 70. Kh3 {[%clk 0:00:21]}  Bf8 {[%clk 0:00:06]} 71. Bd2 {[%clk 0:00:14]}  Bg7 {[%clk 0:00:05]} 72. Ne3+ {[%clk 0:00:12]}  Kf4 {[%clk 0:00:05]} 73. Kg2 {[%clk 0:00:13]}  Bf8 {[%clk 0:00:04]} 74. Nc4+ {[%clk 0:00:12]}  Kf5 {[%clk 0:00:05]} 75. Kg3 {[%clk 0:00:12]}  Be7 {[%clk 0:00:05]} 76. Ne3+ {[%clk 0:00:12]}  Ke5 {[%clk 0:00:03]} 77. Kg4 {[%clk 0:00:13]}  Kd4 {[%clk 0:00:02]} 78. Nf5+ {[%clk 0:00:14]} 1-0


[Site "https://www.chess.com"]

[Event "Titled Tuesday Blitz November 08 Early 2022"]
[White "Faizrakhmanov, Ramil"]
[Black "Andreikin, Dmitry"]
[WhiteFideId "24103209"]
[BlackFideId "4158814"]
[WhiteElo "2437"]
[BlackElo "2736"]
[Result "1/2-1/2"]
[Round "05"]
[TimeControl "180+1"]
[Date "2022.11.08"]
[WhiteClock "0:00:04"]
[BlackClock "0:00:03"]

1. d4 {[%clk 0:03:00]}  Nf6 {[%clk 0:02:58]} 2. c4 {[%clk 0:03:01]}  e6 {[%clk 0:02:59]} 3. Nf3 {[%clk 0:03:01]}  b6 {[%clk 0:02:58]} 4. g3 {[%clk 0:03:01]}  Bb7 {[%clk 0:02:58]} 5. Bg2 {[%clk 0:03:01]}  Bb4+ {[%clk 0:02:59]} 6. Bd2 {[%clk 0:03:00]}  a5 {[%clk 0:02:59]} 7. O-O {[%clk 0:02:58]}  O-O {[%clk 0:02:59]} 8. Bf4 {[%clk 0:02:54]}  Be7 {[%clk 0:02:59]} 9. Nc3 {[%clk 0:02:54]}  Ne4 {[%clk 0:02:59]} 10. Qd3 {[%clk 0:02:54]}  Nxc3 {[%clk 0:02:57]} 11. bxc3 {[%clk 0:02:55]}  f5 {[%clk 0:02:44]} 12. Ne5 {[%clk 0:02:40]}  Bxg2 {[%clk 0:02:43]} 13. Kxg2 {[%clk 0:02:41]}  d6 {[%clk 0:02:17]} 14. Nf3 {[%clk 0:02:39]}  g5 {[%clk 0:02:11]} 15. Bd2 {[%clk 0:02:24]}  Nd7 {[%clk 0:02:04]} 16. Qe3 {[%clk 0:02:01]}  e5 {[%clk 0:02:03]} 17. Nxg5 {[%clk 0:01:37]}  Bxg5 {[%clk 0:02:03]} 18. Qxg5+ {[%clk 0:01:38]}  Qxg5 {[%clk 0:02:03]} 19. Bxg5 {[%clk 0:01:36]}  Rae8 {[%clk 0:02:04]} 20. e3 {[%clk 0:01:27]}  Kf7 {[%clk 0:02:03]} 21. Rab1 {[%clk 0:01:14]}  Kg6 {[%clk 0:01:59]} 22. Bh4 {[%clk 0:01:12]}  h5 {[%clk 0:01:54]} 23. f4 {[%clk 0:00:55]}  exd4 {[%clk 0:01:37]} 24. exd4 {[%clk 0:00:51]}  Re3 {[%clk 0:01:37]} 25. Rf3 {[%clk 0:00:50]}  Re2+ {[%clk 0:01:37]} 26. Rf2 {[%clk 0:00:50]}  Re3 {[%clk 0:01:37]} 27. Rf3 {[%clk 0:00:41]}  Re2+ {[%clk 0:01:35]} 28. Rf2 {[%clk 0:00:41]}  Rfe8 {[%clk 0:01:34]} 29. Rd1 {[%clk 0:00:29]}  R2e3 {[%clk 0:01:31]} 30. Rf3 {[%clk 0:00:25]}  Re2+ {[%clk 0:01:29]} 31. Rf2 {[%clk 0:00:25]}  R8e3 {[%clk 0:01:17]} 32. Bd8 {[%clk 0:00:22]}  Rxf2+ {[%clk 0:01:15]} 33. Kxf2 {[%clk 0:00:23]}  Rxc3 {[%clk 0:01:16]} 34. Bxc7 {[%clk 0:00:21]}  d5 {[%clk 0:01:16]} 35. c5 {[%clk 0:00:14]}  bxc5 {[%clk 0:01:17]} 36. dxc5 {[%clk 0:00:12]}  Nxc5 {[%clk 0:01:15]} 37. Bxa5 {[%clk 0:00:11]}  Ne4+ {[%clk 0:01:14]} 38. Kg1 {[%clk 0:00:10]}  Ra3 {[%clk 0:01:10]} 39. Rxd5 {[%clk 0:00:09]}  Rxa2 {[%clk 0:01:09]} 40. Be1 {[%clk 0:00:08]}  Re2 {[%clk 0:00:59]} 41. Kf1 {[%clk 0:00:07]}  Rxh2 {[%clk 0:00:59]} 42. Ra5 {[%clk 0:00:06]}  Kf6 {[%clk 0:00:38]} 43. Ra6+ {[%clk 0:00:06]}  Kf7 {[%clk 0:00:38]} 44. Ra5 {[%clk 0:00:07]}  Ke6 {[%clk 0:00:38]} 45. Ra6+ {[%clk 0:00:07]}  Kd5 {[%clk 0:00:36]} 46. Ra5+ {[%clk 0:00:07]}  Kd4 {[%clk 0:00:37]} 47. Ra4+ {[%clk 0:00:06]}  Ke3 {[%clk 0:00:35]} 48. Ra3+ {[%clk 0:00:05]}  Kd4 {[%clk 0:00:35]} 49. Ra4+ {[%clk 0:00:06]}  Kd3 {[%clk 0:00:36]} 50. Ra3+ {[%clk 0:00:06]}  Kc4 {[%clk 0:00:36]} 51. Ra4+ {[%clk 0:00:06]}  Kb3 {[%clk 0:00:36]} 52. Ra5 {[%clk 0:00:06]}  Kc4 {[%clk 0:00:22]} 53. Ra4+ {[%clk 0:00:06]}  Kd5 {[%clk 0:00:19]} 54. Ra5+ {[%clk 0:00:07]}  Ke6 {[%clk 0:00:19]} 55. Ra6+ {[%clk 0:00:07]}  Kf7 {[%clk 0:00:20]} 56. Ra5 {[%clk 0:00:07]}  h4 {[%clk 0:00:16]} 57. gxh4 {[%clk 0:00:05]}  Kg6 {[%clk 0:00:17]} 58. Ra8 {[%clk 0:00:04]}  Kh5 {[%clk 0:00:11]} 59. Rg8 {[%clk 0:00:04]}  Ra2 {[%clk 0:00:11]} 60. Rg7 {[%clk 0:00:04]}  Rc2 {[%clk 0:00:09]} 61. Rg8 {[%clk 0:00:04]}  Ra2 {[%clk 0:00:09]} 62. Rg7 {[%clk 0:00:04]}  Rc2 {[%clk 0:00:05]} 63. Rg8 {[%clk 0:00:04]}  Rc4 {[%clk 0:00:05]} 64. Kg2 {[%clk 0:00:03]}  Rc2+ {[%clk 0:00:03]} 65. Kf1 {[%clk 0:00:04]} 1/2-1/2


[Site "https://www.chess.com"]

[Event "Titled Tuesday Blitz November 08 Early 2022"]
[White "Fawzy, Adham"]
[Black "Tharushi, T H D Niklesha"]
[WhiteFideId "10613129"]
[BlackFideId "9918264"]
[WhiteElo "2541"]
[BlackElo "1596"]
[Result "1-0"]
[Round "05"]
[TimeControl "180+1"]
[Date "2022.11.09"]
[WhiteClock "0:00:04"]
[BlackClock "0:01:21"]

1. e4 {[%clk 0:03:00]}  c6 {[%clk 0:02:59]} 2. d4 {[%clk 0:03:00]}  d5 {[%clk 0:02:55]} 3. e5 {[%clk 0:03:01]}  Bf5 {[%clk 0:02:55]} 4. Nf3 {[%clk 0:03:01]}  e6 {[%clk 0:02:54]} 5. Be2 {[%clk 0:03:02]}  Ne7 {[%clk 0:02:54]} 6. c3 {[%clk 0:03:02]}  Nd7 {[%clk 0:02:54]} 7. O-O {[%clk 0:03:02]}  c5 {[%clk 0:02:55]} 8. dxc5 {[%clk 0:02:46]}  Nc6 {[%clk 0:02:53]} 9. b4 {[%clk 0:02:41]}  Ncxe5 {[%clk 0:02:52]} 10. Nxe5 {[%clk 0:02:41]}  Nxe5 {[%clk 0:02:51]} 11. f4 {[%clk 0:02:41]}  Nc6 {[%clk 0:02:48]} 12. g4 {[%clk 0:02:41]}  Be4 {[%clk 0:02:48]} 13. Nd2 {[%clk 0:02:38]}  Qh4 {[%clk 0:02:43]} 14. Nxe4 {[%clk 0:02:30]}  dxe4 {[%clk 0:02:43]} 15. Qc2 {[%clk 0:02:29]}  h5 {[%clk 0:02:37]} 16. g5 {[%clk 0:02:21]}  f5 {[%clk 0:02:31]} 17. gxf6 {[%clk 0:01:52]}  gxf6 {[%clk 0:02:29]} 18. Qxe4 {[%clk 0:01:51]}  Rg8+ {[%clk 0:02:28]} 19. Kh1 {[%clk 0:01:50]}  Qh3 {[%clk 0:02:19]} 20. Be3 {[%clk 0:01:30]}  O-O-O {[%clk 0:02:09]} 21. Rg1 {[%clk 0:01:17]}  Bh6 {[%clk 0:02:06]} 22. b5 {[%clk 0:01:04]}  Ne7 {[%clk 0:02:05]} 23. Bf3 {[%clk 0:00:36]}  Nd5 {[%clk 0:02:03]} 24. c4 {[%clk 0:00:31]}  Kb8 {[%clk 0:01:37]} 25. cxd5 {[%clk 0:00:28]}  exd5 {[%clk 0:01:38]} 26. Qxd5 {[%clk 0:00:11]}  Rxd5 {[%clk 0:01:37]} 27. Rxg8+ {[%clk 0:00:10]}  Kc7 {[%clk 0:01:37]} 28. Bxd5 {[%clk 0:00:10]}  Qxe3 {[%clk 0:01:37]} 29. Rd1 {[%clk 0:00:07]}  Qxf4 {[%clk 0:01:37]} 30. Bg2 {[%clk 0:00:06]}  Qa4 {[%clk 0:01:32]} 31. b6+ {[%clk 0:00:04]}  axb6 {[%clk 0:01:31]} 32. cxb6+ {[%clk 0:00:05]}  Kxb6 {[%clk 0:01:31]} 33. Rb1+ {[%clk 0:00:05]}  Kc5 {[%clk 0:01:31]} 34. Rc8+ {[%clk 0:00:05]}  Kd6 {[%clk 0:01:31]} 35. Rd8+ {[%clk 0:00:05]}  Ke7 {[%clk 0:01:31]} 36. Rdd1 {[%clk 0:00:04]}  Kf7 {[%clk 0:01:31]} 37. Rxb7+ {[%clk 0:00:04]}  Kg8 {[%clk 0:01:30]} 38. Rd8+ {[%clk 0:00:03]}  Bf8 {[%clk 0:01:31]} 39. Bd5+ {[%clk 0:00:03]}  Kh8 {[%clk 0:01:21]} 40. Rxf8# {[%clk 0:00:04]} 1-0


[Site "https://www.chess.com"]

[Event "Titled Tuesday Blitz November 08 Early 2022"]
[White "Fier, Alexandr"]
[Black "Martinez Alcantara, Jose Eduardo"]
[WhiteFideId "2107139"]
[BlackFideId "3805662"]
[WhiteElo "2617"]
[BlackElo "2705"]
[Result "0-1"]
[Round "05"]
[TimeControl "180+1"]
[Date "2022.11.08"]
[WhiteClock "0:00:09"]
[BlackClock "0:00:07"]

1. d4 {[%clk 0:03:00]}  Nf6 {[%clk 0:03:00]} 2. c4 {[%clk 0:03:01]}  e6 {[%clk 0:03:00]} 3. Nc3 {[%clk 0:03:02]}  Bb4 {[%clk 0:03:01]} 4. e3 {[%clk 0:03:02]}  O-O {[%clk 0:03:01]} 5. Ne2 {[%clk 0:03:03]}  d5 {[%clk 0:03:00]} 6. a3 {[%clk 0:03:03]}  Bd6 {[%clk 0:03:00]} 7. Ng3 {[%clk 0:02:59]}  b6 {[%clk 0:02:46]} 8. Be2 {[%clk 0:02:58]}  Re8 {[%clk 0:02:41]} 9. O-O {[%clk 0:02:57]}  Bb7 {[%clk 0:02:40]} 10. cxd5 {[%clk 0:02:54]}  exd5 {[%clk 0:02:40]} 11. b4 {[%clk 0:02:53]}  c6 {[%clk 0:02:37]} 12. Bb2 {[%clk 0:02:53]}  Nbd7 {[%clk 0:02:37]} 13. Rc1 {[%clk 0:02:52]}  Bf8 {[%clk 0:02:26]} 14. Bf3 {[%clk 0:02:52]}  b5 {[%clk 0:02:21]} 15. e4 {[%clk 0:02:51]}  Nb6 {[%clk 0:02:21]} 16. e5 {[%clk 0:02:51]}  Nfd7 {[%clk 0:02:21]} 17. Bg4 {[%clk 0:02:38]}  Nc4 {[%clk 0:02:21]} 18. Rc2 {[%clk 0:02:35]}  a5 {[%clk 0:02:21]} 19. Bc1 {[%clk 0:02:32]}  Nxa3 {[%clk 0:02:12]} 20. Bxa3 {[%clk 0:02:28]}  axb4 {[%clk 0:02:12]} 21. Bxb4 {[%clk 0:02:29]}  Bxb4 {[%clk 0:02:12]} 22. Nh5 {[%clk 0:02:21]}  Nf8 {[%clk 0:02:06]} 23. Qb1 {[%clk 0:02:14]}  Be7 {[%clk 0:02:01]} 24. f4 {[%clk 0:02:12]}  Qb6 {[%clk 0:01:57]} 25. Ne2 {[%clk 0:02:03]}  c5 {[%clk 0:01:36]} 26. dxc5 {[%clk 0:01:53]}  Bxc5+ {[%clk 0:01:37]} 27. Kh1 {[%clk 0:01:54]}  d4 {[%clk 0:01:28]} 28. Rb2 {[%clk 0:01:49]}  b4 {[%clk 0:01:25]} 29. Neg3 {[%clk 0:01:49]}  Ng6 {[%clk 0:00:58]} 30. Be2 {[%clk 0:01:30]}  Ra3 {[%clk 0:00:52]} 31. Bc4 {[%clk 0:01:25]}  Ba6 {[%clk 0:00:41]} 32. Bxa6 {[%clk 0:00:35]}  Qxa6 {[%clk 0:00:42]} 33. Re1 {[%clk 0:00:32]}  d3 {[%clk 0:00:39]} 34. Ne4 {[%clk 0:00:30]}  Be7 {[%clk 0:00:36]} 35. Rxb4 {[%clk 0:00:28]}  d2 {[%clk 0:00:32]} 36. Nxd2 {[%clk 0:00:27]}  Bxb4 {[%clk 0:00:31]} 37. Qxb4 {[%clk 0:00:27]}  Qa5 {[%clk 0:00:28]} 38. Qxa5 {[%clk 0:00:25]}  Rxa5 {[%clk 0:00:28]} 39. Nf3 {[%clk 0:00:26]}  Ne7 {[%clk 0:00:27]} 40. Ng3 {[%clk 0:00:26]}  Ra4 {[%clk 0:00:26]} 41. f5 {[%clk 0:00:26]}  Nd5 {[%clk 0:00:27]} 42. h3 {[%clk 0:00:25]}  h6 {[%clk 0:00:26]} 43. Rd1 {[%clk 0:00:26]}  Ne3 {[%clk 0:00:23]} 44. Rd7 {[%clk 0:00:26]}  Ra1+ {[%clk 0:00:23]} 45. Kh2 {[%clk 0:00:27]}  Ra2 {[%clk 0:00:24]} 46. Nh5 {[%clk 0:00:14]}  Nxf5 {[%clk 0:00:18]} 47. Kg1 {[%clk 0:00:12]}  Rb8 {[%clk 0:00:17]} 48. Rd1 {[%clk 0:00:11]}  Rxg2+ {[%clk 0:00:14]} 49. Kh1 {[%clk 0:00:09]}  Rf2 {[%clk 0:00:12]} 50. Nh2 {[%clk 0:00:09]}  Rfb2 {[%clk 0:00:10]} 51. Rd7 {[%clk 0:00:07]}  Rb1+ {[%clk 0:00:10]} 52. Kg2 {[%clk 0:00:08]}  R1b2+ {[%clk 0:00:09]} 53. Kh1 {[%clk 0:00:08]}  Nh4 {[%clk 0:00:10]} 54. Ng4 {[%clk 0:00:08]}  Nf5 {[%clk 0:00:06]} 55. e6 {[%clk 0:00:08]}  fxe6 {[%clk 0:00:06]} 56. Ngf6+ {[%clk 0:00:08]}  Kh8 {[%clk 0:00:04]} 57. Ng4 {[%clk 0:00:08]}  Rb1+ {[%clk 0:00:04]} 58. Kg2 {[%clk 0:00:07]}  R1b7 {[%clk 0:00:05]} 59. Rd3 {[%clk 0:00:07]}  Rb2+ {[%clk 0:00:06]} 60. Kh1 {[%clk 0:00:07]}  Rb1+ {[%clk 0:00:07]} 61. Kg2 {[%clk 0:00:07]}  R8b2+ {[%clk 0:00:07]} 62. Kf3 {[%clk 0:00:08]}  Rb3 {[%clk 0:00:08]} 63. Rxb3 {[%clk 0:00:08]}  Rxb3+ {[%clk 0:00:08]} 64. Kf4 {[%clk 0:00:09]}  Rxh3 {[%clk 0:00:07]} 0-1


[Site "https://www.chess.com"]

[Event "Titled Tuesday Blitz November 08 Early 2022"]
[White "Gabdrakhmanov, Azat"]
[Black "Sarkar, Justin"]
[WhiteFideId "34189197"]
[BlackFideId "2010011"]
[WhiteElo "2254"]
[BlackElo "2239"]
[Result "1-0"]
[Round "05"]
[TimeControl "180+1"]
[Date "2022.11.09"]
[WhiteClock "0:01:32"]
[BlackClock "0:00:01"]

1. e4 {[%clk 0:03:00]}  c5 {[%clk 0:02:46]} 2. Nf3 {[%clk 0:03:00]}  d6 {[%clk 0:02:45]} 3. d4 {[%clk 0:03:00]}  cxd4 {[%clk 0:02:46]} 4. Nxd4 {[%clk 0:03:01]}  Nf6 {[%clk 0:02:45]} 5. Nc3 {[%clk 0:03:01]}  a6 {[%clk 0:02:45]} 6. Be3 {[%clk 0:03:01]}  Ng4 {[%clk 0:02:42]} 7. Bc1 {[%clk 0:03:01]}  Nf6 {[%clk 0:02:38]} 8. f3 {[%clk 0:03:00]}  e5 {[%clk 0:02:30]} 9. Nb3 {[%clk 0:03:00]}  Be6 {[%clk 0:02:28]} 10. Be3 {[%clk 0:03:00]}  h5 {[%clk 0:02:22]} 11. Qd2 {[%clk 0:02:59]}  Nbd7 {[%clk 0:02:19]} 12. Nd5 {[%clk 0:02:56]}  Bxd5 {[%clk 0:02:12]} 13. exd5 {[%clk 0:02:57]}  Qc7 {[%clk 0:02:05]} 14. c4 {[%clk 0:02:55]}  Be7 {[%clk 0:01:32]} 15. Be2 {[%clk 0:02:54]}  a5 {[%clk 0:01:21]} 16. a4 {[%clk 0:02:36]}  b6 {[%clk 0:01:15]} 17. O-O {[%clk 0:02:35]}  Nc5 {[%clk 0:01:04]} 18. Nxc5 {[%clk 0:02:34]}  bxc5 {[%clk 0:01:02]} 19. Qe1 {[%clk 0:02:32]}  O-O {[%clk 0:00:53]} 20. Bd2 {[%clk 0:02:30]}  g6 {[%clk 0:00:48]} 21. Bc3 {[%clk 0:02:29]}  Nd7 {[%clk 0:00:37]} 22. Bd3 {[%clk 0:02:28]}  f5 {[%clk 0:00:31]} 23. Ra3 {[%clk 0:02:27]}  Bf6 {[%clk 0:00:20]} 24. Rb3 {[%clk 0:02:25]}  Rfb8 {[%clk 0:00:16]} 25. Rb5 {[%clk 0:02:20]}  Rxb5 {[%clk 0:00:16]} 26. axb5 {[%clk 0:02:21]}  a4 {[%clk 0:00:16]} 27. Qa1 {[%clk 0:01:57]}  Nb6 {[%clk 0:00:12]} 28. Qc1 {[%clk 0:01:56]}  Rf8 {[%clk 0:00:12]} 29. Qh6 {[%clk 0:01:53]}  Qg7 {[%clk 0:00:11]} 30. Qxg7+ {[%clk 0:01:52]}  Kxg7 {[%clk 0:00:11]} 31. Ra1 {[%clk 0:01:53]}  Ra8 {[%clk 0:00:09]} 32. Ra3 {[%clk 0:01:53]}  Kf7 {[%clk 0:00:09]} 33. Kf2 {[%clk 0:01:52]}  Bd8 {[%clk 0:00:08]} 34. Ke3 {[%clk 0:01:51]}  Bc7 {[%clk 0:00:07]} 35. Ra1 {[%clk 0:01:48]}  Bd8 {[%clk 0:00:07]} 36. Ke2 {[%clk 0:01:47]}  Bc7 {[%clk 0:00:07]} 37. g4 {[%clk 0:01:45]}  hxg4 {[%clk 0:00:05]} 38. fxg4 {[%clk 0:01:46]}  e4 {[%clk 0:00:05]} 39. Bc2 {[%clk 0:01:44]}  Bd8 {[%clk 0:00:04]} 40. Rf1 {[%clk 0:01:42]}  Nxc4 {[%clk 0:00:04]} 41. gxf5 {[%clk 0:01:42]}  gxf5 {[%clk 0:00:02]} 42. Rxf5+ {[%clk 0:01:42]}  Ke8 {[%clk 0:00:01]} 43. Bxe4 {[%clk 0:01:40]}  a3 {[%clk 0:00:01]} 44. b3 {[%clk 0:01:37]}  Nb2 {[%clk 0:00:01]} 45. Rf1 {[%clk 0:01:33]}  Ba5 {[%clk 0:00:01]} 46. Bg7 {[%clk 0:01:32]} 1-0


[Site "https://www.chess.com"]

[Event "Titled Tuesday Blitz November 08 Early 2022"]
[White "Goltsev, Dmitry"]
[Black "Guliev, Logman"]
[WhiteFideId "24176710"]
[BlackFideId "13400061"]
[WhiteElo "2289"]
[BlackElo "2161"]
[Result "1-0"]
[Round "05"]
[TimeControl "180+1"]
[Date "2022.11.09"]
[WhiteClock "0:00:38"]
[BlackClock "0:00:01"]

1. e4 {[%clk 0:01:01]}  c5 {[%clk 0:02:40]} 2. Nf3 {[%clk 0:01:01]}  d6 {[%clk 0:02:40]} 3. d4 {[%clk 0:01:01]}  cxd4 {[%clk 0:02:40]} 4. Nxd4 {[%clk 0:01:02]}  Nf6 {[%clk 0:02:40]} 5. Nc3 {[%clk 0:01:03]}  Nc6 {[%clk 0:02:38]} 6. Be2 {[%clk 0:01:03]}  e5 {[%clk 0:02:37]} 7. Nb3 {[%clk 0:01:03]}  Be7 {[%clk 0:02:37]} 8. Be3 {[%clk 0:01:03]}  O-O {[%clk 0:02:36]} 9. O-O {[%clk 0:01:03]}  Be6 {[%clk 0:02:36]} 10. f3 {[%clk 0:01:02]}  a5 {[%clk 0:02:36]} 11. Nd5 {[%clk 0:01:03]}  a4 {[%clk 0:02:31]} 12. Nc1 {[%clk 0:01:02]}  a3 {[%clk 0:02:31]} 13. b3 {[%clk 0:01:01]}  Bxd5 {[%clk 0:02:24]} 14. exd5 {[%clk 0:01:02]}  Nb8 {[%clk 0:02:06]} 15. c4 {[%clk 0:01:02]}  Nbd7 {[%clk 0:02:05]} 16. b4 {[%clk 0:01:03]}  b6 {[%clk 0:02:04]} 17. Nb3 {[%clk 0:01:02]}  Nh5 {[%clk 0:01:55]} 18. Qd2 {[%clk 0:01:01]}  h6 {[%clk 0:01:52]} 19. Rfd1 {[%clk 0:01:01]}  Bg5 {[%clk 0:01:43]} 20. Rac1 {[%clk 0:01:01]}  Bxe3+ {[%clk 0:01:29]} 21. Qxe3 {[%clk 0:01:02]}  Nf4 {[%clk 0:01:16]} 22. Bf1 {[%clk 0:01:01]}  Qg5 {[%clk 0:01:12]} 23. Kh1 {[%clk 0:01:02]}  Rfc8 {[%clk 0:01:08]} 24. g3 {[%clk 0:00:59]}  Nh5 {[%clk 0:01:03]} 25. Qxg5 {[%clk 0:00:59]}  hxg5 {[%clk 0:01:04]} 26. Bh3 {[%clk 0:01:00]}  Nhf6 {[%clk 0:00:37]} 27. Rc3 {[%clk 0:00:53]}  Rc7 {[%clk 0:00:36]} 28. Rdc1 {[%clk 0:00:44]}  Rac8 {[%clk 0:00:34]} 29. Kg1 {[%clk 0:00:43]}  g6 {[%clk 0:00:33]} 30. Kf2 {[%clk 0:00:43]}  Kg7 {[%clk 0:00:33]} 31. Nd2 {[%clk 0:00:40]}  Rh8 {[%clk 0:00:32]} 32. Kg2 {[%clk 0:00:39]}  Ra8 {[%clk 0:00:24]} 33. Bxd7 {[%clk 0:00:38]}  Nxd7 {[%clk 0:00:22]} 34. Ne4 {[%clk 0:00:38]}  Ra4 {[%clk 0:00:15]} 35. Nxd6 {[%clk 0:00:38]}  Kf8 {[%clk 0:00:13]} 36. Rb3 {[%clk 0:00:38]}  f6 {[%clk 0:00:11]} 37. Ne4 {[%clk 0:00:36]}  Kg7 {[%clk 0:00:09]} 38. c5 {[%clk 0:00:37]}  bxc5 {[%clk 0:00:06]} 39. bxc5 {[%clk 0:00:38]}  f5 {[%clk 0:00:06]} 40. Nxg5 {[%clk 0:00:38]}  Kf6 {[%clk 0:00:05]} 41. Ne6 {[%clk 0:00:38]}  Rc8 {[%clk 0:00:01]} 42. Rb7 {[%clk 0:00:38]} 1-0


[Site "https://www.chess.com"]